[Event "Late-Titled-Tuesday-Blitz-August-29-2023"]
[Site "Chess.com"]
[Date "2023.08.29"]
[Round "1"]
[White "S-Fazulyanov"]
[Black "19912131712118"]
[Result "1-0"]
[WhiteElo "2705"]
[BlackElo "2392"]
[TimeControl "180+1"]
[EndTime "14:07:05 PDT"]
[Termination "S-Fazulyanov won on time"]

1. e4 {[%clk 0:02:59.5]} 1... c5 {[%clk 0:02:59.2]} 2. Nf3 {[%clk 0:02:59.1]}
2... e6 {[%clk 0:02:58.5]} 3. c4 {[%clk 0:02:59]} 3... Nc6 {[%clk 0:02:58.3]} 4.
Nc3 {[%clk 0:02:58.4]} 4... Nf6 {[%clk 0:02:57.8]} 5. Be2 {[%clk 0:02:58.4]}
5... Be7 {[%clk 0:02:44.4]} 6. O-O {[%clk 0:02:57]} 6... O-O {[%clk 0:02:44.3]}
7. d4 {[%clk 0:02:54.3]} 7... cxd4 {[%clk 0:02:43.4]} 8. Nxd4 {[%clk 0:02:54.5]}
8... a6 {[%clk 0:02:42.1]} 9. Be3 {[%clk 0:02:53.6]} 9... Qc7 {[%clk 0:02:40.9]}
10. Rc1 {[%clk 0:02:52.3]} 10... d6 {[%clk 0:02:35]} 11. f3 {[%clk 0:02:36]}
11... Bd7 {[%clk 0:02:34.2]} 12. Qd2 {[%clk 0:02:35.3]} 12... Rad8 {[%clk
0:02:32.7]} 13. Nd5 {[%clk 0:02:21.1]} 13... exd5 {[%clk 0:02:22.4]} 14. cxd5
{[%clk 0:02:20.9]} 14... Rfe8 {[%clk 0:01:46.9]} 15. dxc6 {[%clk 0:02:05.1]}
15... Bxc6 {[%clk 0:01:45.5]} 16. Bxa6 {[%clk 0:01:47.5]} 16... Qd7 {[%clk
0:01:17.3]} 17. Nxc6 {[%clk 0:01:18.2]} 17... bxc6 {[%clk 0:01:18.2]} 18. Be2
{[%clk 0:01:17.3]} 18... Qb7 {[%clk 0:01:01]} 19. Qc3 {[%clk 0:01:15.3]} 19...
Rc8 {[%clk 0:00:58.6]} 20. Rfd1 {[%clk 0:01:13.9]} 20... c5 {[%clk 0:00:54]} 21.
Bc4 {[%clk 0:01:11.3]} 21... Nd7 {[%clk 0:00:51]} 22. b3 {[%clk 0:01:00.9]}
22... Bf6 {[%clk 0:00:48.9]} 23. Qd3 {[%clk 0:00:59.1]} 23... Ne5 {[%clk
0:00:32]} 24. Qxd6 {[%clk 0:00:58.1]} 24... Nxc4 {[%clk 0:00:31.8]} 25. bxc4
{[%clk 0:00:54.4]} 25... Red8 {[%clk 0:00:23.7]} 26. Qg3 {[%clk 0:00:49.4]}
26... Rxd1+ {[%clk 0:00:20.8]} 27. Rxd1 {[%clk 0:00:49.1]} 27... Qb2 {[%clk
0:00:10.6]} 28. Qf2 {[%clk 0:00:41]} 28... Qb4 {[%clk 0:00:09]} 29. Qc2 {[%clk
0:00:37.7]} 29... g6 {[%clk 0:00:09.2]} 30. f4 {[%clk 0:00:36.3]} 30... Ra8
{[%clk 0:00:08.3]} 31. e5 {[%clk 0:00:35.7]} 31... Be7 {[%clk 0:00:08.5]} 32. f5
{[%clk 0:00:31.1]} 32... Ra3 {[%clk 0:00:05.7]} 33. Bh6 {[%clk 0:00:26.9]} 33...
Qc3 {[%clk 0:00:02.1]} 34. Rb1 {[%clk 0:00:18.2]} 1-0

[Event "Late-Titled-Tuesday-Blitz-August-29-2023"]
[Site "Chess.com"]
[Date "2023.08.29"]
[Round "1"]
[White "crossingthestreet"]
[Black "JiiHart"]
[Result "0-1"]
[WhiteElo "2524"]
[BlackElo "2119"]
[TimeControl "180+1"]
[EndTime "14:07:07 PDT"]
[Termination "JiiHart won by resignation"]

1. b3 {[%clk 0:02:59.3]} 1... g6 {[%clk 0:02:59.6]} 2. Bb2 {[%clk 0:02:59.1]}
2... Nf6 {[%clk 0:03:00.3]} 3. Nf3 {[%clk 0:02:57.6]} 3... Bg7 {[%clk
0:02:59.9]} 4. e3 {[%clk 0:02:57]} 4... d6 {[%clk 0:03:00.1]} 5. Be2 {[%clk
0:02:57.4]} 5... O-O {[%clk 0:02:59.2]} 6. O-O {[%clk 0:02:58]} 6... e5 {[%clk
0:02:56.7]} 7. d4 {[%clk 0:02:55.9]} 7... Nc6 {[%clk 0:02:49.9]} 8. c4 {[%clk
0:02:52.9]} 8... exd4 {[%clk 0:02:46.4]} 9. exd4 {[%clk 0:02:50.2]} 9... d5
{[%clk 0:02:43.4]} 10. Nbd2 {[%clk 0:02:47.2]} 10... Re8 {[%clk 0:02:41.9]} 11.
h3 {[%clk 0:02:42]} 11... Bf5 {[%clk 0:02:41]} 12. Ne5 {[%clk 0:02:34.8]} 12...
Nxe5 {[%clk 0:02:24.7]} 13. dxe5 {[%clk 0:02:31.6]} 13... Ne4 {[%clk 0:02:23.3]}
14. Nf3 {[%clk 0:02:26.2]} 14... dxc4 {[%clk 0:02:14.6]} 15. Bxc4 {[%clk
0:02:25.8]} 15... c6 {[%clk 0:02:03.7]} 16. a4 {[%clk 0:02:25.3]} 16... Qxd1
{[%clk 0:02:00.1]} 17. Raxd1 {[%clk 0:02:23.4]} 17... Rad8 {[%clk 0:02:00.2]}
18. Rfe1 {[%clk 0:02:18.2]} 18... Nc5 {[%clk 0:01:42]} 19. Bd4 {[%clk
0:02:04.9]} 19... Bf8 {[%clk 0:01:34.2]} 20. Ng5 {[%clk 0:01:33.7]} 20... Be6
{[%clk 0:00:54.8]} 21. Nxe6 {[%clk 0:01:20.6]} 21... Nxe6 {[%clk 0:00:41.7]} 22.
Bxa7 {[%clk 0:01:20]} 22... Nc5 {[%clk 0:00:20]} 23. f4 {[%clk 0:01:12.3]} 23...
Kg7 {[%clk 0:00:19]} 24. Bb6 {[%clk 0:01:11.4]} 24... Rd7 {[%clk 0:00:15.6]} 25.
g4 {[%clk 0:01:04.7]} 25... h6 {[%clk 0:00:15.5]} 26. Kg2 {[%clk 0:01:04.8]}
26... Rxd1 {[%clk 0:00:12]} 27. Rxd1 {[%clk 0:01:04.9]} 27... f6 {[%clk
0:00:11.1]} 28. Bxc5 {[%clk 0:01:03.3]} 28... Bxc5 {[%clk 0:00:10.6]} 29. e6
{[%clk 0:01:00.5]} 29... Re7 {[%clk 0:00:09.1]} 30. f5 {[%clk 0:00:58.9]} 30...
gxf5 {[%clk 0:00:09]} 31. gxf5 {[%clk 0:00:59.3]} 31... h5 {[%clk 0:00:09.6]}
32. Kf3 {[%clk 0:00:59.4]} 32... h4 {[%clk 0:00:09.7]} 33. Kg4 {[%clk
0:00:58.1]} 33... Kh6 {[%clk 0:00:09.8]} 34. Kxh4 {[%clk 0:00:58]} 34... Rg7
{[%clk 0:00:10]} 35. Rf1 {[%clk 0:00:38.7]} 35... Be3 {[%clk 0:00:08.3]} 36. Be2
{[%clk 0:00:32.9]} 36... Rg2 {[%clk 0:00:06.2]} 0-1

[Event "Late-Titled-Tuesday-Blitz-August-29-2023"]
[Site "Chess.com"]
[Date "2023.08.29"]
[Round "1"]
[White "frederiksvane"]
[Black "pedromartinez91"]
[Result "1-0"]
[WhiteElo "2944"]
[BlackElo "2495"]
[TimeControl "180+1"]
[EndTime "14:07:09 PDT"]
[Termination "frederiksvane won by resignation"]

1. c4 {[%clk 0:03:00]} 1... e5 {[%clk 0:02:59]} 2. g3 {[%clk 0:03:00]} 2... Nf6
{[%clk 0:02:58.6]} 3. Bg2 {[%clk 0:02:58]} 3... d5 {[%clk 0:02:58.7]} 4. cxd5
{[%clk 0:02:57.6]} 4... Nxd5 {[%clk 0:02:59.6]} 5. Nc3 {[%clk 0:02:58.1]} 5...
Nf6 {[%clk 0:02:59.1]} 6. d3 {[%clk 0:02:56.7]} 6... h6 {[%clk 0:02:59.2]} 7.
Nf3 {[%clk 0:02:56.7]} 7... Nc6 {[%clk 0:02:59]} 8. O-O {[%clk 0:02:57.2]} 8...
Bc5 {[%clk 0:02:53.6]} 9. Na4 {[%clk 0:02:50.2]} 9... Bd6 {[%clk 0:02:52.1]} 10.
Be3 {[%clk 0:02:49.4]} 10... O-O {[%clk 0:02:47.9]} 11. Rc1 {[%clk 0:02:49]}
11... Re8 {[%clk 0:02:42.8]} 12. a3 {[%clk 0:02:47.8]} 12... Ne7 {[%clk
0:02:06.1]} 13. b4 {[%clk 0:02:41.5]} 13... a5 {[%clk 0:02:00.2]} 14. Nc5 {[%clk
0:02:39.5]} 14... Ned5 {[%clk 0:01:56.4]} 15. Bd2 {[%clk 0:02:31.7]} 15... axb4
{[%clk 0:01:56.6]} 16. axb4 {[%clk 0:02:32.6]} 16... b6 {[%clk 0:01:55.5]} 17.
e4 {[%clk 0:02:22.8]} 17... Ne7 {[%clk 0:01:39.8]} 18. d4 {[%clk 0:02:22.8]}
18... Nc6 {[%clk 0:01:12.5]} 19. b5 {[%clk 0:02:10]} 19... Nxd4 {[%clk
0:00:56.2]} 20. Nxd4 {[%clk 0:02:10.2]} 20... Bxc5 {[%clk 0:00:52.2]} 21. Nc6
{[%clk 0:02:08]} 21... Qd3 {[%clk 0:00:49.2]} 22. Bc3 {[%clk 0:02:06.5]} 22...
Qxd1 {[%clk 0:00:43.5]} 23. Rcxd1 {[%clk 0:02:07]} 23... Ra2 {[%clk 0:00:40.2]}
24. Nxe5 {[%clk 0:02:05.7]} 24... Bb7 {[%clk 0:00:36.4]} 25. Rde1 {[%clk
0:01:41.8]} 25... Rxe5 {[%clk 0:00:29.7]} 26. Bxe5 {[%clk 0:01:42.7]} 26... Ng4
{[%clk 0:00:29.8]} 27. Bxc7 {[%clk 0:01:43.3]} 27... Nxf2 {[%clk 0:00:28.1]} 28.
Rc1 {[%clk 0:01:42.8]} 28... Nd3+ {[%clk 0:00:26.8]} 29. Rxc5 {[%clk 0:01:42.7]}
29... Nxc5 {[%clk 0:00:26.5]} 30. Bxb6 {[%clk 0:01:42.8]} 30... Bxe4 {[%clk
0:00:25.8]} 31. Bxe4 {[%clk 0:01:31]} 31... Nxe4 {[%clk 0:00:26.7]} 32. Bd4
{[%clk 0:01:31.5]} 32... Rd2 {[%clk 0:00:24.6]} 33. Ba1 {[%clk 0:01:23]} 33...
Ng5 {[%clk 0:00:17.5]} 34. b6 {[%clk 0:01:14.3]} 34... Nh3+ {[%clk 0:00:16.2]}
35. Kh1 {[%clk 0:01:14.7]} 35... Nf2+ {[%clk 0:00:16.8]} 36. Kg2 {[%clk
0:01:14.9]} 36... Nd3+ {[%clk 0:00:16.8]} 37. Kf3 {[%clk 0:01:11.3]} 37... Nc5
{[%clk 0:00:17]} 38. Rc1 {[%clk 0:01:10.4]} 38... Rd5 {[%clk 0:00:05.7]} 39. Ke3
{[%clk 0:01:03.1]} 39... f6 {[%clk 0:00:05.5]} 40. Bd4 {[%clk 0:01:03.1]} 40...
Nb7 {[%clk 0:00:02]} 41. Rc8+ {[%clk 0:01:01.6]} 41... Kh7 {[%clk 0:00:01.9]}
42. Rc7 {[%clk 0:00:55.1]} 42... Nd6 {[%clk 0:00:02.2]} 43. Bxf6 {[%clk
0:00:55.7]} 43... Nf5+ {[%clk 0:00:01.8]} 44. Kf4 {[%clk 0:00:48.9]} 44... Rb5
{[%clk 0:00:02.7]} 45. Be5 {[%clk 0:00:48.9]} 45... Kg6 {[%clk 0:00:01.9]} 46.
Rc6+ {[%clk 0:00:47.1]} 46... Kf7 {[%clk 0:00:02.1]} 47. Kxf5 {[%clk 0:00:47.2]}
47... g6+ {[%clk 0:00:01.6]} 1-0

[Event "Late-Titled-Tuesday-Blitz-August-29-2023"]
[Site "Chess.com"]
[Date "2023.08.29"]
[Round "1"]
[White "cottage_cheese"]
[Black "HamedWafa4"]
[Result "0-1"]
[WhiteElo "2268"]
[BlackElo "2581"]
[TimeControl "180+1"]
[EndTime "14:07:09 PDT"]
[Termination "HamedWafa4 won on time"]

1. e4 {[%clk 0:02:53.5]} 1... e5 {[%clk 0:02:57]} 2. Nf3 {[%clk 0:02:52.9]} 2...
Nc6 {[%clk 0:02:55.1]} 3. Bb5 {[%clk 0:02:52.4]} 3... a6 {[%clk 0:02:42.8]} 4.
Ba4 {[%clk 0:02:51.4]} 4... Nf6 {[%clk 0:02:41.4]} 5. O-O {[%clk 0:02:50.4]}
5... Be7 {[%clk 0:02:40.6]} 6. Re1 {[%clk 0:02:48.4]} 6... b5 {[%clk 0:02:41]}
7. Bb3 {[%clk 0:02:48.7]} 7... O-O {[%clk 0:02:41.7]} 8. a4 {[%clk 0:02:48.1]}
8... d5 {[%clk 0:02:39.7]} 9. exd5 {[%clk 0:02:38.2]} 9... Na5 {[%clk
0:02:35.2]} 10. Ba2 {[%clk 0:02:31.6]} 10... e4 {[%clk 0:02:34]} 11. Ne5 {[%clk
0:02:16.4]} 11... c5 {[%clk 0:02:33]} 12. dxc6 {[%clk 0:01:46.5]} 12... Qd4
{[%clk 0:02:29.3]} 13. Nd7 {[%clk 0:01:28.8]} 13... Bxd7 {[%clk 0:02:27.6]} 14.
cxd7 {[%clk 0:01:29.7]} 14... b4 {[%clk 0:02:27.1]} 15. c3 {[%clk 0:01:19.8]}
15... Qxd7 {[%clk 0:02:24.4]} 16. cxb4 {[%clk 0:01:17.6]} 16... Bxb4 {[%clk
0:02:20.4]} 17. Nc3 {[%clk 0:01:15.3]} 17... Rfe8 {[%clk 0:02:18.1]} 18. d4
{[%clk 0:00:57.3]} 18... exd3 {[%clk 0:02:14.1]} 19. Rxe8+ {[%clk 0:00:52.5]}
19... Rxe8 {[%clk 0:02:15]} 20. Bg5 {[%clk 0:00:47.2]} 20... Ng4 {[%clk
0:02:07.3]} 21. h3 {[%clk 0:00:39.8]} 21... Nxf2 {[%clk 0:02:06]} 22. Kxf2
{[%clk 0:00:35.5]} 22... Bc5+ {[%clk 0:01:53]} 23. Kg3 {[%clk 0:00:29.3]} 23...
Bd6+ {[%clk 0:01:53.1]} 24. Kf2 {[%clk 0:00:15.5]} 24... Qf5+ {[%clk 0:01:51]}
25. Qf3 {[%clk 0:00:14.3]} 25... Bc5+ {[%clk 0:01:46.6]} 26. Kf1 {[%clk
0:00:12.6]} 26... Qxf3+ {[%clk 0:01:26]} 27. gxf3 {[%clk 0:00:12.5]} 27... h6
{[%clk 0:01:26.9]} 28. Bd2 {[%clk 0:00:10.8]} 28... Nc6 {[%clk 0:01:25.3]} 29.
Re1 {[%clk 0:00:10.8]} 29... Rb8 {[%clk 0:01:24.4]} 30. Bc4 {[%clk 0:00:07.9]}
30... Na5 {[%clk 0:01:16]} 31. Bxd3 {[%clk 0:00:07.3]} 31... Rd8 {[%clk
0:01:16.5]} 32. Ne4 {[%clk 0:00:02.7]} 32... Nb3 {[%clk 0:01:16.7]} 33. Nxc5
{[%clk 0:00:02.5]} 33... Nxc5 {[%clk 0:01:17.6]} 34. Bxa6 {[%clk 0:00:01.9]}
34... Rxd2 {[%clk 0:01:16.8]} 35. Bb5 {[%clk 0:00:01.6]} 35... Rxb2 {[%clk
0:01:14.1]} 36. Ra1 {[%clk 0:00:02]} 36... g5 {[%clk 0:01:12.9]} 37. Bc6 {[%clk
0:00:02.3]} 37... Rb6 {[%clk 0:01:12.3]} 38. Bb5 {[%clk 0:00:02.1]} 38... Kg7
{[%clk 0:01:10.6]} 39. Rc1 {[%clk 0:00:02.2]} 39... Ne6 {[%clk 0:01:07.1]} 40.
Rc6 {[%clk 0:00:01.8]} 40... Rb8 {[%clk 0:01:06.1]} 41. Kf2 {[%clk 0:00:01.7]}
41... Nd4 {[%clk 0:01:03.2]} 42. Rc5 {[%clk 0:00:01.7]} 42... Ne6 {[%clk
0:00:59.6]} 43. Rc3 {[%clk 0:00:01.3]} 43... Rd8 {[%clk 0:01:00]} 44. Ra3 {[%clk
0:00:01.4]} 44... Nd4 {[%clk 0:00:57.9]} 45. a5 {[%clk 0:00:01.4]} 45... Nxb5
{[%clk 0:00:57.8]} 0-1

[Event "Late-Titled-Tuesday-Blitz-August-29-2023"]
[Site "Chess.com"]
[Date "2023.08.29"]
[Round "1"]
[White "Matibar"]
[Black "b_6"]
[Result "1-0"]
[WhiteElo "2844"]
[BlackElo "2449"]
[TimeControl "180+1"]
[EndTime "14:07:12 PDT"]
[Termination "Matibar won by resignation"]

1. e4 {[%clk 0:03:00.9]} 1... c5 {[%clk 0:02:59.8]} 2. Nf3 {[%clk 0:02:59.9]}
2... e6 {[%clk 0:02:59.6]} 3. d4 {[%clk 0:02:58.8]} 3... cxd4 {[%clk 0:03:00.5]}
4. Nxd4 {[%clk 0:02:59]} 4... Nf6 {[%clk 0:03:01.1]} 5. Nc3 {[%clk 0:02:58.8]}
5... Nc6 {[%clk 0:03:01.6]} 6. Nb3 {[%clk 0:02:52.7]} 6... Bb4 {[%clk
0:02:58.4]} 7. Bd3 {[%clk 0:02:52.3]} 7... d5 {[%clk 0:02:55.1]} 8. exd5 {[%clk
0:02:52.3]} 8... Nxd5 {[%clk 0:02:54.3]} 9. Bd2 {[%clk 0:02:51.4]} 9... Nxc3
{[%clk 0:02:52]} 10. bxc3 {[%clk 0:02:52.3]} 10... Be7 {[%clk 0:02:51.9]} 11.
O-O {[%clk 0:02:36.7]} 11... O-O {[%clk 0:02:46.6]} 12. Re1 {[%clk 0:02:35.1]}
12... b6 {[%clk 0:02:42]} 13. Qh5 {[%clk 0:02:24.1]} 13... g6 {[%clk 0:02:41.4]}
14. Qh6 {[%clk 0:02:24.1]} 14... Bf6 {[%clk 0:02:33.9]} 15. Rad1 {[%clk
0:02:22.7]} 15... Bb7 {[%clk 0:02:30.6]} 16. Be4 {[%clk 0:02:13.7]} 16... Bg7
{[%clk 0:02:24.5]} 17. Qh3 {[%clk 0:01:59.5]} 17... Qc7 {[%clk 0:02:14.7]} 18.
Bh6 {[%clk 0:01:55.8]} 18... Rad8 {[%clk 0:02:07]} 19. Bg5 {[%clk 0:01:11.5]}
19... Rxd1 {[%clk 0:01:56.4]} 20. Rxd1 {[%clk 0:01:10.5]} 20... Re8 {[%clk
0:01:44.5]} 21. Qg3 {[%clk 0:00:56.7]} 21... Qxg3 {[%clk 0:01:36.4]} 22. hxg3
{[%clk 0:00:56.4]} 22... f6 {[%clk 0:01:14.9]} 23. Rd7 {[%clk 0:00:38.4]} 23...
Rb8 {[%clk 0:00:49.6]} 24. Bf4 {[%clk 0:00:31.2]} 24... e5 {[%clk 0:00:49.2]}
25. Be3 {[%clk 0:00:31.5]} 25... Na5 {[%clk 0:00:45.9]} 26. Bxb7 {[%clk
0:00:31.1]} 26... Rxb7 {[%clk 0:00:43.4]} 27. Rd8+ {[%clk 0:00:25.8]} 27... Kf7
{[%clk 0:00:43.4]} 28. Kf1 {[%clk 0:00:23]} 28... Nc4 {[%clk 0:00:39.6]} 29. Ke2
{[%clk 0:00:23]} 29... f5 {[%clk 0:00:37.5]} 30. Nd2 {[%clk 0:00:18.1]} 30...
Nxd2 {[%clk 0:00:33.9]} 31. Kxd2 {[%clk 0:00:17.9]} 31... Bf6 {[%clk 0:00:32.3]}
32. Ra8 {[%clk 0:00:18]} 32... Rd7+ {[%clk 0:00:30.3]} 33. Ke2 {[%clk
0:00:17.4]} 33... Rc7 {[%clk 0:00:29.2]} 34. Bd2 {[%clk 0:00:17.1]} 34... e4
{[%clk 0:00:28.7]} 35. f3 {[%clk 0:00:15.8]} 35... Re7 {[%clk 0:00:26.6]} 36.
fxe4 {[%clk 0:00:15.3]} 36... Rxe4+ {[%clk 0:00:26.6]} 37. Kd3 {[%clk 0:00:15]}
37... Re7 {[%clk 0:00:26.8]} 38. Bf4 {[%clk 0:00:14.9]} 38... Ke6 {[%clk
0:00:22.8]} 39. c4 {[%clk 0:00:14.4]} 39... Be5 {[%clk 0:00:22.2]} 40. c3 {[%clk
0:00:12.2]} 40... Rd7+ {[%clk 0:00:22]} 41. Kc2 {[%clk 0:00:12.3]} 41... Rc7
{[%clk 0:00:19.6]} 42. Re8+ {[%clk 0:00:12.1]} 1-0

[Event "Late-Titled-Tuesday-Blitz-August-29-2023"]
[Site "Chess.com"]
[Date "2023.08.29"]
[Round "1"]
[White "TanitoluwaAps116"]
[Black "viktorgen2021"]
[Result "1-0"]
[WhiteElo "2783"]
[BlackElo "2438"]
[TimeControl "180+1"]
[EndTime "14:07:12 PDT"]
[Termination "TanitoluwaAps116 won by checkmate"]

1. e4 {[%clk 0:02:59.7]} 1... g6 {[%clk 0:02:45.5]} 2. d4 {[%clk 0:02:58.2]}
2... Bg7 {[%clk 0:02:44.2]} 3. Nc3 {[%clk 0:02:58.6]} 3... d6 {[%clk 0:02:44.7]}
4. Be3 {[%clk 0:02:54.8]} 4... c6 {[%clk 0:02:44.3]} 5. Nf3 {[%clk 0:02:52]}
5... Nf6 {[%clk 0:02:41.3]} 6. h3 {[%clk 0:02:43.3]} 6... Nbd7 {[%clk
0:02:38.8]} 7. Bd3 {[%clk 0:02:39.2]} 7... e5 {[%clk 0:02:38.3]} 8. O-O {[%clk
0:02:38.1]} 8... O-O {[%clk 0:02:38.5]} 9. Qd2 {[%clk 0:02:34.5]} 9... b5 {[%clk
0:02:37.4]} 10. Rad1 {[%clk 0:02:24.1]} 10... Qe7 {[%clk 0:02:35.1]} 11. Rfe1
{[%clk 0:02:23.4]} 11... Bb7 {[%clk 0:02:25.6]} 12. Bh6 {[%clk 0:02:16.8]} 12...
Rad8 {[%clk 0:02:24.9]} 13. Bxg7 {[%clk 0:02:16.4]} 13... Kxg7 {[%clk
0:02:25.1]} 14. Qg5 {[%clk 0:02:10.8]} 14... h6 {[%clk 0:02:22.9]} 15. Qh4
{[%clk 0:02:08.3]} 15... Nb6 {[%clk 0:02:15.4]} 16. Ne2 {[%clk 0:01:39]} 16...
a6 {[%clk 0:02:00.4]} 17. c3 {[%clk 0:01:35.6]} 17... a5 {[%clk 0:01:48.2]} 18.
g4 {[%clk 0:01:21.9]} 18... b4 {[%clk 0:01:41.9]} 19. Ng3 {[%clk 0:01:12.6]}
19... Na4 {[%clk 0:01:12.4]} 20. g5 {[%clk 0:01:04.1]} 20... hxg5 {[%clk
0:01:10.4]} 21. Qxg5 {[%clk 0:01:03.3]} 21... Kh8 {[%clk 0:00:53]} 22. Qh4+
{[%clk 0:00:53.5]} 22... Kg7 {[%clk 0:00:47.1]} 23. Kh1 {[%clk 0:00:47.2]} 23...
Rh8 {[%clk 0:00:46.4]} 24. Nf5+ {[%clk 0:00:44.1]} 24... gxf5 {[%clk 0:00:12.8]}
25. Rg1+ {[%clk 0:00:43.7]} 25... Ng4 {[%clk 0:00:11.5]} 26. Qxe7 {[%clk
0:00:44.2]} 26... Rxh3+ {[%clk 0:00:10.7]} 27. Kg2 {[%clk 0:00:44.7]} 27... Rdh8
{[%clk 0:00:08.9]} 28. Qxb7 {[%clk 0:00:34.1]} 28... Nxb2 {[%clk 0:00:08.6]} 29.
Be2 {[%clk 0:00:24.1]} 29... bxc3 {[%clk 0:00:07.1]} 30. Rh1 {[%clk 0:00:22.9]}
30... Nxd1 {[%clk 0:00:07.1]} 31. Rxh3 {[%clk 0:00:21.9]} 31... Rxh3 {[%clk
0:00:07.2]} 32. Kxh3 {[%clk 0:00:22.5]} 32... Ngxf2+ {[%clk 0:00:06.9]} 33. Kg2
{[%clk 0:00:22]} 33... c2 {[%clk 0:00:07.8]} 34. Ng5 {[%clk 0:00:14.2]} 34...
c1=Q {[%clk 0:00:03.6]} 35. Qxf7+ {[%clk 0:00:13]} 35... Kh6 {[%clk 0:00:04.2]}
36. Qh5+ {[%clk 0:00:13.6]} 36... Kg7 {[%clk 0:00:04.3]} 37. Qf7+ {[%clk
0:00:14.1]} 37... Kh6 {[%clk 0:00:04.7]} 38. Qf6# {[%clk 0:00:14.8]} 1-0

[Event "Late-Titled-Tuesday-Blitz-August-29-2023"]
[Site "Chess.com"]
[Date "2023.08.29"]
[Round "1"]
[White "TC2304"]
[Black "IlanSchnaider"]
[Result "0-1"]
[WhiteElo "2401"]
[BlackElo "2695"]
[TimeControl "180+1"]
[EndTime "14:07:15 PDT"]
[Termination "IlanSchnaider won on time"]

1. c4 {[%clk 0:03:00.8]} 1... Nf6 {[%clk 0:02:56.9]} 2. g3 {[%clk 0:03:00.3]}
2... g6 {[%clk 0:02:56.9]} 3. Bg2 {[%clk 0:03:00.9]} 3... Bg7 {[%clk 0:02:57.5]}
4. Nc3 {[%clk 0:02:59.5]} 4... O-O {[%clk 0:02:57.7]} 5. e4 {[%clk 0:03:00.2]}
5... e5 {[%clk 0:02:55.2]} 6. Nge2 {[%clk 0:03:00.8]} 6... Nc6 {[%clk 0:02:53]}
7. O-O {[%clk 0:03:01.1]} 7... Re8 {[%clk 0:02:53.4]} 8. d3 {[%clk 0:03:01.8]}
8... d6 {[%clk 0:02:53.9]} 9. Rb1 {[%clk 0:02:54.7]} 9... a5 {[%clk 0:02:53.1]}
10. a3 {[%clk 0:02:54.8]} 10... Nd7 {[%clk 0:02:52.8]} 11. b4 {[%clk 0:02:54.6]}
11... axb4 {[%clk 0:02:51.1]} 12. axb4 {[%clk 0:02:55.5]} 12... Nf8 {[%clk
0:02:50.9]} 13. Nd5 {[%clk 0:02:54.9]} 13... Ne6 {[%clk 0:02:50.6]} 14. Be3
{[%clk 0:02:49.9]} 14... Ncd4 {[%clk 0:02:49.4]} 15. Nxd4 {[%clk 0:02:49.2]}
15... exd4 {[%clk 0:02:49.2]} 16. Bd2 {[%clk 0:02:46]} 16... c6 {[%clk
0:02:49.4]} 17. Nf4 {[%clk 0:02:45.7]} 17... Ra2 {[%clk 0:02:47.8]} 18. b5
{[%clk 0:02:42.7]} 18... Bd7 {[%clk 0:02:47.1]} 19. bxc6 {[%clk 0:02:36.1]}
19... bxc6 {[%clk 0:02:48]} 20. Nxe6 {[%clk 0:02:29.2]} 20... fxe6 {[%clk
0:02:45.8]} 21. Ra1 {[%clk 0:02:22.1]} 21... Qa8 {[%clk 0:02:42.8]} 22. h4
{[%clk 0:02:07.1]} 22... Rb8 {[%clk 0:02:34.2]} 23. Rxa2 {[%clk 0:01:54.7]}
23... Qxa2 {[%clk 0:02:33.2]} 24. h5 {[%clk 0:01:55.3]} 24... gxh5 {[%clk
0:02:31.4]} 25. Bg5 {[%clk 0:01:48.8]} 25... h6 {[%clk 0:02:31.3]} 26. Bh4
{[%clk 0:01:48.9]} 26... Be8 {[%clk 0:02:28]} 27. Bh3 {[%clk 0:01:41]} 27... Bf7
{[%clk 0:02:27.8]} 28. Be7 {[%clk 0:01:32.9]} 28... d5 {[%clk 0:02:27.2]} 29.
cxd5 {[%clk 0:01:31.3]} 29... exd5 {[%clk 0:02:26.6]} 30. Bd6 {[%clk 0:01:23.7]}
30... Re8 {[%clk 0:02:23.1]} 31. Bf5 {[%clk 0:01:21.8]} 31... dxe4 {[%clk
0:02:11.7]} 32. Bxe4 {[%clk 0:01:22.7]} 32... Qe6 {[%clk 0:01:52.4]} 33. Bf4
{[%clk 0:01:09]} 33... c5 {[%clk 0:01:47.9]} 34. Qc1 {[%clk 0:01:09.4]} 34... c4
{[%clk 0:01:45.8]} 35. Qa3 {[%clk 0:00:50.7]} 35... c3 {[%clk 0:01:44]} 36. Qa4
{[%clk 0:00:40.3]} 36... h4 {[%clk 0:01:41.7]} 37. Kg2 {[%clk 0:00:39.6]} 37...
Bg6 {[%clk 0:01:38.7]} 38. Bc6 {[%clk 0:00:29.4]} 38... Rc8 {[%clk 0:01:35.9]}
39. Bd7 {[%clk 0:00:29.1]} 39... Qd5+ {[%clk 0:01:36]} 40. Kg1 {[%clk 0:00:23]}
40... h3 {[%clk 0:01:32.7]} 41. f3 {[%clk 0:00:19.6]} 41... Ra8 {[%clk
0:01:32.6]} 42. Qc6 {[%clk 0:00:07.3]} 42... Qxc6 {[%clk 0:01:32.5]} 43. Bxc6
{[%clk 0:00:08.2]} 43... Rc8 {[%clk 0:01:31.6]} 44. Bd5+ {[%clk 0:00:07.4]}
44... Kh7 {[%clk 0:01:30.2]} 45. Be4 {[%clk 0:00:06.6]} 45... h5 {[%clk
0:01:28.2]} 46. Rc1 {[%clk 0:00:05.8]} 46... Bh6 {[%clk 0:01:24.2]} 47. Kh2
{[%clk 0:00:05.6]} 47... h4 {[%clk 0:01:16.4]} 48. Bxh6 {[%clk 0:00:04.9]} 48...
hxg3+ {[%clk 0:01:05.8]} 49. Kxg3 {[%clk 0:00:05.7]} 49... Kxh6 {[%clk
0:01:06.4]} 50. Kxh3 {[%clk 0:00:05.4]} 50... Bxe4 {[%clk 0:01:01.7]} 51. fxe4
{[%clk 0:00:05.1]} 51... Kg5 {[%clk 0:01:02.5]} 52. Kg3 {[%clk 0:00:05.8]} 52...
Rb8 {[%clk 0:01:03]} 53. Kf3 {[%clk 0:00:05.9]} 53... Rb2 {[%clk 0:01:03.1]} 54.
Rg1+ {[%clk 0:00:02.3]} 54... Kf6 {[%clk 0:01:03.1]} 55. Rc1 {[%clk 0:00:01.9]}
55... Rd2 {[%clk 0:01:03.3]} 56. Kf4 {[%clk 0:00:01.7]} 56... Rxd3 {[%clk
0:01:03.9]} 57. e5+ {[%clk 0:00:02.4]} 57... Ke6 {[%clk 0:01:04.5]} 58. Ke4
{[%clk 0:00:03.3]} 58... Rd2 {[%clk 0:01:05.1]} 0-1